fUST/lending_fUST_20240808
["ID","MTS","AMOUNT","RATE_DAILY","PERIOD"]
[334463676,1723127493368,-500.0,0.00029589,7]
[334463677,1723127493378,-500.0,0.00029589,7]
[334463678,1723127493388,-500.0,0.00029589,7]
[334463679,1723127493397,-500.0,0.00029589,7]
[334463680,1723127493407,-500.0,0.00029589,7]
[334463681,1723127493417,-1162.47,0.00029589,7]
[334463682,1723127493427,-500.0,0.00029589,7]
[334463683,1723127493438,-500.0,0.00029589,7]
[334463684,1723127493448,-500.0,0.00029589,7]
[334463685,1723127493457,-500.0,0.00029589,7]
[334463686,1723127493468,-500.0,0.00029589,7]
[334463687,1723127493478,-500.0,0.00029589,7]
[334463688,1723127493487,-833.91,0.00029589,7]
[334463689,1723127493496,-1721.11,0.00029589,7]
[334463690,1723127493506,-1019.11,0.00029589,7]
[334463691,1723127493516,-1196.4,0.00029589,7]
[334463692,1723127493526,-500.0,0.00029589,7]
[334463693,1723127493535,-500.0,0.00029589,7]
[334463694,1723127493545,-500.0,0.00029589,7]
[334463695,1723127493554,-1000.5,0.00029589,7]
[334463696,1723127493563,-500.0,0.00029589,7]
[334463697,1723127493574,-500.0,0.00029589,7]
[334463698,1723127493583,-608.73,0.00029589,7]
[334463699,1723127493593,-1185.23,0.00029589,7]
[334463700,1723127493603,-1207.54,0.00029589,7]
[334463701,1723127493613,-1333.07,0.00029589,7]
[334463702,1723127493622,-500.0,0.00029589,7]
[334463703,1723127493632,-693.21,0.00029589,7]
[334463704,1723127493643,-500.0,0.00029589,7]
[334463705,1723127493654,-890.75,0.00029589,7]
[334463706,1723127493664,-500.0,0.00029589,7]
[334463707,1723127493674,-161.71193566,0.00029589,7]
[334463708,1723127493685,-795.04,0.00029589,7]
[334463709,1723127493696,-655.27,0.00029589,7]
[334463710,1723127493706,-693.74,0.00029589,7]
[334463711,1723127493716,-782.87,0.00029589,7]
[334463712,1723127493727,-500.0,0.00029589,7]
[334463713,1723127493737,-500.0,0.00029589,7]
[334463714,1723127493747,-500.0,0.00029589,7]
[334463715,1723127493757,-675.8,0.00029589,7]
[334463716,1723127493766,-1560.89,0.00029589,7]
[334463717,1723127493778,-1680.07,0.00029589,7]
[334463718,1723127493789,-706.34,0.00029589,7]
[334463719,1723127493801,-1242.93,0.00029589,7]
[334463720,1723127493811,-771.49,0.00029589,7]
[334463721,1723127493821,-500.0,0.00029589,7]
[334463722,1723127493830,-500.0,0.00029589,7]
[334463723,1723127493840,-594.89,0.00029589,7]
[334463724,1723127493850,-922.79,0.00029589,7]
[334463725,1723127493860,-500.0,0.00029589,7]
[334463726,1723127493870,-1485.41,0.00029589,7]
[334463727,1723127493879,-500.0,0.00029589,7]
[334463728,1723127493890,-500.0,0.00029589,7]
[334463729,1723127493900,-559.43,0.00029589,7]
[334463730,1723127493910,-500.0,0.00029589,7]
[334463731,1723127493919,-500.0,0.00029589,7]
[334463732,1723127493929,-500.0,0.00029589,7]
[334463733,1723127493939,-996.39,0.00029589,7]
[334463734,1723127493950,-640.52,0.00029589,7]
[334463735,1723127493959,-880.17,0.00029589,7]
[334463736,1723127493969,-823.49,0.00029589,7]
[334463737,1723127493979,-560.07,0.00029589,7]
[334463738,1723127493988,-500.0,0.00029589,7]
[334463739,1723127493998,-500.0,0.00029589,7]
[334463740,1723127494007,-507.66,0.00029589,7]
[334463741,1723127494017,-1558.81,0.00029589,7]
[334463742,1723127494028,-884.83,0.00029589,7]
[334463743,1723127494039,-500.0,0.00029589,7]
[334463744,1723127494053,-1090.82,0.00029589,7]
[334463745,1723127494065,-500.0,0.00029589,7]
[334463746,1723127494075,-500.0,0.00029589,7]
[334463747,1723127494085,-1144.02,0.00029589,7]
[334463748,1723127494095,-500.0,0.00029589,7]
[334463749,1723127494104,-500.0,0.00029589,7]
[334463750,1723127494114,-500.0,0.00029589,7]
[334463751,1723127494123,-569.8,0.00029589,7]
[334463752,1723127494132,-1461.09,0.00029589,7]
[334463753,1723127494144,-556.81,0.00029589,7]
[334463754,1723127494154,-500.0,0.00029589,7]
[334463755,1723127494164,-500.0,0.00029589,7]
[334463756,1723127494173,-805.07,0.00029589,7]
[334463757,1723127494182,-500.0,0.00029589,7]
[334463758,1723127494191,-500.0,0.00029589,7]
[334463759,1723127494201,-1009.58,0.00029589,7]
[334463760,1723127494211,-443.88174785,0.00029589,7]
[334463761,1723127494221,-500.0,0.00029589,7]
[334463762,1723127494231,-920.05,0.00029589,7]
[334463763,1723127494241,-594.61,0.00029589,7]
[334463764,1723127494250,-500.0,0.00029589,7]
[334463765,1723127494260,-585.98,0.00029589,7]
[334463766,1723127494270,-565.79930568,0.00029589,7]
[334463767,1723127494280,-510.14,0.00029589,7]
[334463768,1723127494289,-1430.29,0.00029589,7]
[334463769,1723127494299,-1045.85,0.00029589,7]
[334463770,1723127494309,-539.74,0.00029589,7]
[334463771,1723127494319,-500.0,0.00029589,7]
[334463772,1723127494329,-558.49,0.00029589,7]
[334463773,1723127494339,-1431.19,0.00029589,7]
[334463774,1723127494348,-500.0,0.00029589,7]
[334463775,1723127494358,-500.0,0.00029589,7]
[334463776,1723127494367,-1342.57,0.00029589,7]
[334463777,1723127494378,-1023.16,0.00029589,7]
[334463778,1723127494387,-460.22210951,0.00029589,7]
[334463779,1723127494397,-500.0,0.00029589,7]
[334463780,1723127494407,-642.71,0.00029589,7]
[334463781,1723127494416,-2112.22,0.00029589,7]
[334463782,1723127494426,-1260.28,0.00029589,7]
[334463783,1723127494436,-500.0,0.00029589,7]
[334463784,1723127494445,-500.0,0.00029589,7]
[334463785,1723127494455,-500.0,0.00029589,7]
[334463786,1723127494465,-500.0,0.00029589,7]
[334463787,1723127494474,-4267.44,0.00029589,7]
[334463788,1723127494483,-734.27,0.00029589,7]
[334463789,1723127494494,-500.0,0.00029589,7]
[334463790,1723127494504,-500.0,0.00029589,7]
[334463791,1723127494514,-1187.94,0.00029589,7]
[334463792,1723127494524,-658.67,0.00029589,7]
[334463793,1723127494539,-1918.9,0.00029589,7]
[334463794,1723127494549,-500.0,0.00029589,7]
[334463795,1723127494560,-500.0,0.00029589,7]
[334463796,1723127494569,-500.0,0.00029589,7]
[334463797,1723127494578,-500.0,0.00029589,7]
[334463798,1723127494588,-522.35,0.00029589,7]
[334463799,1723127494597,-2890.91,0.00029589,7]
[334463800,1723127494607,-500.0,0.00029589,7]
[334463801,1723127494616,-845.58,0.00029589,7]
[334463802,1723127494627,-500.0,0.00029589,7]
[334463803,1723127494636,-500.0,0.00029589,7]
[334463804,1723127494646,-3581.63,0.00029589,7]
[334463805,1723127494656,-2657.73,0.00029589,7]
[334463806,1723127494668,-500.0,0.00029589,7]
[334463807,1723127494677,-500.0,0.00029589,7]
[334463808,1723127494689,-1265.98,0.00029589,7]
[334463809,1723127494699,-500.0,0.00029589,7]
[334463810,1723127494710,-2496.81,0.00029589,7]
[334463811,1723127494721,-2264.42,0.00029589,7]
[334463812,1723127494732,-500.0,0.00029589,7]
[334463813,1723127494744,-500.0,0.00029589,7]
[334463814,1723127494754,-500.0,0.00029589,7]
[334463815,1723127494764,-2067.39,0.00029589,7]
[334463816,1723127494773,-500.0,0.00029589,7]
[334463817,1723127494786,-1648.64,0.00029589,7]
[334463818,1723127494805,-12212.07,0.00029589,7]
[334463819,1723127494815,-2215.99,0.00029589,7]
[334463820,1723127494824,-500.0,0.00029589,7]
[334463821,1723127494834,-500.0,0.00029589,7]
[334463822,1723127494845,-3244.38,0.00029589,7]
[334463823,1723127494854,-560.15,0.00029589,7]
[334463824,1723127494863,-500.0,0.00029589,7]
[334463825,1723127494874,-756.07,0.00029589,7]
[334463826,1723127494884,-500.0,0.00029589,7]
[334463827,1723127494893,-2435.78,0.00029589,7]
[334463828,1723127494903,-500.0,0.00029589,7]
[334463829,1723127494912,-500.0,0.00029589,7]
[334463830,1723127494922,-4048.6,0.00029589,7]
[334463831,1723127494931,-3340.35,0.00029589,7]
[334463832,1723127494940,-2023.37,0.00029589,7]
[334463833,1723127494950,-620.24,0.00029589,7]
[334463834,1723127494959,-887.12,0.00029589,7]
[334463835,1723127494968,-500.0,0.00029589,7]
[334463836,1723127494979,-500.0,0.00029589,7]
[334463837,1723127495092,-1014.22,0.00029589,7]
[334463838,1723127495102,-739.27,0.00029589,7]
[334463839,1723127495111,-694.31,0.00029589,7]
[334463840,1723127495121,-1306.27,0.00029589,7]
[334463841,1723127495130,-8560.56,0.00029589,7]
[334463842,1723127495139,-500.0,0.00029589,7]
[334463843,1723127495149,-642.95,0.00029589,7]
[334463844,1723127495158,-942.49,0.00029589,7]
[334463845,1723127495168,-500.0,0.00029589,7]
[334463846,1723127495178,-1320.99,0.00029589,7]
[334463847,1723127495188,-500.0,0.00029589,7]
[334463848,1723127495198,-500.0,0.00029589,7]
[334463849,1723127495207,-1361.2,0.00029589,7]
[334463850,1723127495216,-1149.0,0.00029589,7]
[334463851,1723127495225,-1479.67,0.00029589,7]
[334463852,1723127495235,-500.0,0.00029589,7]
[334463853,1723127495244,-2572.02,0.00029589,7]
[334463854,1723127495253,-500.0,0.00029589,7]
[334463855,1723127495263,-1595.35,0.00029589,7]
[334463856,1723127495272,-500.0,0.00029589,7]
[334463857,1723127495284,-543.51,0.00029589,7]
[334463858,1723127495294,-3266.81,0.00029589,7]
[334463859,1723127495304,-693.0,0.00029589,7]
[334463860,1723127495313,-8118.87,0.00029589,7]
[334463861,1723127495323,-5221.71,0.00029589,7]
[334463862,1723127495333,-500.0,0.00029589,7]
[334463863,1723127495342,-1201.56,0.00029589,7]
[334463864,1723127495352,-1060.18,0.00029589,7]
[334463865,1723127495361,-1147.62,0.00029589,7]
[334463866,1723127495370,-1741.79,0.00029589,7]
[334463867,1723127495380,-1949.49,0.00029589,7]
[334463868,1723127495390,-1686.85,0.00029589,7]
[334463869,1723127495399,-500.0,0.00029589,2]
[334463870,1723127495409,-500.0,0.00029589,7]
[334463871,1723127495418,-500.0,0.00029589,7]
[334463872,1723127495428,-500.0,0.00029589,7]
[334463873,1723127495438,-2014.78,0.00029589,7]
[334463874,1723127495448,-3383.83,0.00029589,7]
[334463875,1723127495459,-1394.08,0.00029589,7]
[334463876,1723127495470,-711.37,0.00029589,7]
[334463877,1723127495480,-500.0,0.00029589,7]
[334463878,1723127495490,-500.0,0.00029589,7]
[334463879,1723127495500,-500.0,0.00029589,7]
[334463880,1723127495510,-3113.94,0.00029589,7]
[334463881,1723127495519,-1325.37,0.00029589,7]
[334463882,1723127495532,-709.86,0.00029589,7]
[334463883,1723127495542,-500.0,0.00029589,7]
[334463884,1723127495551,-4600.0,0.00029617,2]
[334463885,1723127495562,-2900.0,0.00029627,2]
[334463886,1723127495571,-151.0,0.00029766,5]
[334463887,1723127495581,-300.33629363,0.00029789,2]
[334463888,1723127495592,-300.0,0.000298,14]
[334463889,1723127495601,-1000.0,0.0002983,2]
[334463890,1723127495610,-524.81976119,0.00029842,5]
[334463891,1723127495620,-400.0,0.00029842,5]
[334463892,1723127495630,-400.0,0.00029842,5]
[334463893,1723127495639,-2000.0,0.00029849,2]
[334463894,1723127495648,-500.0,0.00029858,2]
[334463895,1723127495657,-500.0,0.00029863,7]
[334463896,1723127495667,-500.0,0.00029863,7]
[334463897,1723127495677,-540.86,0.00029863,7]
[334463898,1723127495686,-500.0,0.00029863,7]
[334463899,1723127495695,-500.0,0.00029863,7]
[334463900,1723127495706,-500.0,0.00029863,7]
[334463901,1723127495716,-784.22,0.00029863,7]
[334463902,1723127495727,-500.0,0.00029863,7]
[334463903,1723127495736,-519.48,0.00029863,7]
[334463904,1723127495746,-500.0,0.00029863,7]
[334463905,1723127495756,-619.70410142,0.00029863,7]
[334463906,1723127495765,-500.0,0.00029863,7]
[334463907,1723127495774,-326.81472338,0.00029863,7]
[334463908,1723127495789,-500.0,0.00029863,7]
[334463909,1723127495800,-500.0,0.00029863,7]
[334463910,1723127495809,-500.0,0.00029863,7]
[334463911,1723127495819,-1011.75,0.00029863,7]
[334463912,1723127495829,-634.85,0.00029863,7]
[334463913,1723127495838,-500.0,0.00029863,7]
[334463914,1723127495847,-994.74,0.00029863,7]
[334463915,1723127495857,-1685.21,0.00029863,7]
[334463916,1723127495867,-500.0,0.00029863,7]
[334463917,1723127495876,-529.08846888,0.00029863,7]
[334463918,1723127495886,-951.68,0.00029863,7]
[334463919,1723127495897,-500.0,0.00029863,7]
[334463920,1723127495907,-601.83,0.00029863,7]
[334463921,1723127495917,-525.69,0.00029863,7]
[334463922,1723127495930,-500.0,0.00029863,7]
[334463923,1723127495951,-500.0,0.00029863,7]
[334463924,1723127495969,-500.0,0.00029863,7]
[334463925,1723127495990,-500.0,0.00029863,7]
[334463926,1723127496010,-500.0,0.00029863,7]
[334463927,1723127496033,-500.0,0.00029863,7]
[334463928,1723127496051,-500.0,0.00029863,7]
[334463929,1723127496066,-1348.57,0.00029863,7]
[334463930,1723127496081,-557.24,0.00029863,7]
[334463931,1723127496100,-581.9,0.00029863,7]
[334463932,1723127496123,-880.21,0.00029863,7]
[334463933,1723127496137,-500.0,0.00029863,7]
[334463934,1723127496152,-819.79,0.00029863,7]
[334463935,1723127496171,-513.48,0.00029863,7]
[334463936,1723127496187,-500.0,0.00029863,7]
[334463937,1723127496203,-715.11,0.00029863,7]
[334463938,1723127496217,-831.75,0.00029863,7]
[334463939,1723127496232,-500.0,0.00029863,7]
[334463940,1723127496247,-500.0,0.00029863,7]
[334463941,1723127496261,-228.62767461,0.00029863,7]
[334463942,1723127496276,-500.0,0.00029863,7]
[334463943,1723127496293,-500.0,0.00029863,7]
[334463944,1723127496307,-1162.47,0.00029863,7]
[334463945,1723127496321,-500.0,0.00029863,7]
[334463946,1723127496337,-500.0,0.00029863,7]
[334463947,1723127496352,-500.0,0.00029863,7]
[334463948,1723127496367,-500.0,0.00029863,7]
[334463949,1723127496382,-500.0,0.00029863,7]
[334463950,1723127496397,-500.0,0.00029863,7]
[334463951,1723127496413,-833.91,0.00029863,7]
[334463952,1723127496427,-1721.11,0.00029863,7]
[334463953,1723127496442,-1019.11,0.00029863,7]
[334463954,1723127496456,-1196.4,0.00029863,7]
[334463955,1723127496472,-500.0,0.00029863,7]
[334463956,1723127496486,-500.0,0.00029863,7]
[334463957,1723127496501,-500.0,0.00029863,7]
[334463958,1723127496515,-1000.5,0.00029863,7]
[334463959,1723127496531,-500.0,0.00029863,7]
[334463960,1723127496546,-500.0,0.00029863,7]
[334463961,1723127496561,-608.73,0.00029863,7]
[334463962,1723127496575,-1185.23,0.00029863,7]
[334463963,1723127496590,-1207.54,0.00029863,7]
[334463964,1723127496603,-1333.07,0.00029863,7]
[334463965,1723127496617,-500.0,0.00029863,7]
[334463966,1723127496631,-693.21,0.00029863,7]
[334463967,1723127496645,-500.0,0.00029863,7]
[334463968,1723127496659,-890.75,0.00029863,7]
[334463969,1723127496673,-500.0,0.00029863,7]
[334463970,1723127496687,-795.04,0.00029863,7]
[334463971,1723127496702,-655.27,0.00029863,7]
[334463972,1723127496718,-693.74,0.00029863,7]
[334463973,1723127496734,-782.87,0.00029863,7]
[334463974,1723127496748,-500.0,0.00029863,7]
[334463975,1723127496763,-500.0,0.00029863,7]
[334463976,1723127496777,-500.0,0.00029863,7]
[334463977,1723127496798,-675.8,0.00029863,7]
[334463978,1723127496812,-1560.89,0.00029863,7]
[334463979,1723127496827,-1680.07,0.00029863,7]
[334463980,1723127496842,-706.34,0.00029863,7]
[334463981,1723127496857,-1242.93,0.00029863,7]
[334463982,1723127496871,-771.49,0.00029863,7]
[334463983,1723127496885,-500.0,0.00029863,7]
[334463984,1723127496900,-500.0,0.00029863,7]
[334463985,1723127496916,-594.89,0.00029863,7]
[334463986,1723127496929,-922.79,0.00029863,7]
[334463987,1723127496944,-500.0,0.00029863,7]
[334463988,1723127496958,-1485.41,0.00029863,7]
[334463989,1723127496973,-500.0,0.00029863,7]
[334463990,1723127496989,-500.0,0.00029863,7]
[334463991,1723127497006,-559.43,0.00029863,7]
[334463992,1723127497021,-500.0,0.00029863,7]
[334463993,1723127497038,-500.0,0.00029863,7]
[334463994,1723127497053,-500.0,0.00029863,7]
[334463995,1723127497068,-996.39,0.00029863,7]
[334463996,1723127497084,-640.52,0.00029863,7]
[334463997,1723127497100,-880.17,0.00029863,7]
[334463998,1723127497115,-823.49,0.00029863,7]
[334463999,1723127497130,-560.07,0.00029863,7]
[334464000,1723127497145,-500.0,0.00029863,7]
[334464001,1723127497161,-500.0,0.00029863,7]
[334464002,1723127497176,-507.66,0.00029863,7]
[334464003,1723127497191,-1558.81,0.00029863,7]
[334464004,1723127497207,-884.83,0.00029863,7]
[334464005,1723127497224,-500.0,0.00029863,7]
[334464006,1723127497240,-1090.82,0.00029863,7]
[334464007,1723127497404,-500.0,0.00029863,7]
[334464008,1723127497423,-500.0,0.00029863,7]
[334464009,1723127497433,-1144.02,0.00029863,7]
[334464010,1723127497442,-500.0,0.00029863,7]
[334464011,1723127497452,-500.0,0.00029863,7]
[334464012,1723127497461,-500.0,0.00029863,7]
[334464013,1723127497470,-569.8,0.00029863,7]
[334464014,1723127497479,-1461.09,0.00029863,7]
[334464015,1723127497488,-556.81,0.00029863,7]
[334464016,1723127497498,-500.0,0.00029863,7]
[334464017,1723127497507,-500.0,0.00029863,7]
[334464018,1723127497516,-805.07,0.00029863,7]
[334464019,1723127497525,-500.0,0.00029863,7]
[334464020,1723127497538,-500.0,0.00029863,7]
[334464021,1723127497551,-1009.58,0.00029863,7]
[334464022,1723127497561,-500.0,0.00029863,7]
[334464023,1723127497570,-920.05,0.00029863,7]
[334464024,1723127497580,-594.61,0.00029863,7]
[334464025,1723127497589,-500.0,0.00029863,7]
[334464026,1723127497598,-585.98,0.00029863,7]
[334464027,1723127497607,-510.14,0.00029863,7]
[334464028,1723127497616,-1430.29,0.00029863,7]
[334464029,1723127497626,-1045.85,0.00029863,7]
[334464030,1723127497635,-539.74,0.00029863,7]
[334464031,1723127497643,-500.0,0.00029863,7]
[334464032,1723127497653,-558.49,0.00029863,7]
[334464033,1723127497662,-1431.19,0.00029863,7]
[334464034,1723127497671,-500.0,0.00029863,7]
[334464035,1723127497680,-500.0,0.00029863,7]
[334464036,1723127497690,-1342.57,0.00029863,7]
[334464037,1723127497699,-1023.16,0.00029863,7]
[334464038,1723127497709,-500.0,0.00029863,7]
[334464039,1723127497719,-642.71,0.00029863,7]
[334464040,1723127497729,-2112.22,0.00029863,7]
[334464041,1723127497739,-1260.28,0.00029863,7]
[334464042,1723127497748,-500.0,0.00029863,7]
[334464043,1723127497757,-500.0,0.00029863,7]
[334464044,1723127497767,-500.0,0.00029863,7]
[334464045,1723127497777,-500.0,0.00029863,7]
[334464046,1723127497790,-4267.44,0.00029863,7]
[334464047,1723127497803,-734.27,0.00029863,7]
[334464048,1723127497812,-500.0,0.00029863,7]
[334464049,1723127497822,-500.0,0.00029863,7]
[334464050,1723127497831,-1187.94,0.00029863,7]
[334464051,1723127497840,-658.67,0.00029863,7]
[334464052,1723127497850,-1918.9,0.00029863,7]
[334464053,1723127497859,-500.0,0.00029863,7]
[334464054,1723127497869,-500.0,0.00029863,7]
[334464055,1723127497878,-500.0,0.00029863,7]
[334464056,1723127497887,-500.0,0.00029863,7]
[334464057,1723127497897,-522.35,0.00029863,7]
[334464058,1723127497906,-2890.91,0.00029863,7]
[334464059,1723127497915,-500.0,0.00029863,7]
[334464060,1723127497924,-845.58,0.00029863,7]
[334464061,1723127497934,-500.0,0.00029863,7]
[334464062,1723127497943,-500.0,0.00029863,7]
[334464063,1723127497955,-3581.63,0.00029863,7]
[334464064,1723127497967,-2657.73,0.00029863,7]
[334464065,1723127497977,-500.0,0.00029863,7]
[334464066,1723127497987,-500.0,0.00029863,7]
[334464067,1723127497996,-1265.98,0.00029863,7]
[334464068,1723127498007,-500.0,0.00029863,7]
[334464069,1723127498017,-2496.81,0.00029863,7]
[334464070,1723127498027,-2264.42,0.00029863,7]
[334464071,1723127498042,-500.0,0.00029863,7]
[334464072,1723127498051,-500.0,0.00029863,7]
[334464073,1723127498061,-500.0,0.00029863,7]
[334464074,1723127498069,-2067.39,0.00029863,7]
[334464075,1723127498079,-500.0,0.00029863,7]
[334464076,1723127498089,-1648.64,0.00029863,7]
[334464077,1723127498098,-12212.07,0.00029863,7]
[334464078,1723127498107,-2215.99,0.00029863,7]
[334464079,1723127498116,-500.0,0.00029863,7]
[334464080,1723127498125,-500.0,0.00029863,7]
[334464081,1723127498134,-3244.38,0.00029863,7]
[334464082,1723127498145,-560.15,0.00029863,7]
[334464083,1723127498156,-616.23693152,0.00029863,7]
[334464084,1723127498168,-756.07,0.00029863,7]
[334464085,1723127498178,-500.0,0.00029863,7]
[334464086,1723127498190,-2435.78,0.00029863,7]
[334464087,1723127498200,-500.0,0.00029863,7]
[334464088,1723127498210,-500.0,0.00029863,7]
[334464089,1723127498220,-4048.6,0.00029863,7]
[334464090,1723127498231,-3340.35,0.00029863,7]
[334464091,1723127498241,-2023.37,0.00029863,7]
[334464092,1723127498251,-620.24,0.00029863,7]
[334464093,1723127498260,-887.12,0.00029863,7]
[334464094,1723127498269,-500.0,0.00029863,7]
[334464095,1723127498279,-500.0,0.00029863,7]
[334464096,1723127498292,-1014.22,0.00029863,7]
[334464097,1723127498302,-739.27,0.00029863,7]
[334464098,1723127498312,-694.31,0.00029863,7]
[334464099,1723127498323,-1306.27,0.00029863,7]
[334464100,1723127498334,-8560.56,0.00029863,7]
[334464101,1723127498346,-500.0,0.00029863,7]
[334464102,1723127498358,-642.95,0.00029863,7]
[334464103,1723127498367,-942.49,0.00029863,7]
[334464104,1723127498377,-500.0,0.00029863,7]
[334464105,1723127498388,-1320.99,0.00029863,7]
[334464106,1723127498398,-500.0,0.00029863,7]
[334464107,1723127498407,-500.0,0.00029863,7]
[334464108,1723127498417,-1361.2,0.00029863,7]
[334464109,1723127498426,-1149.0,0.00029863,7]
[334464110,1723127498436,-1479.67,0.00029863,7]
[334464111,1723127498446,-500.0,0.00029863,7]
[334464112,1723127498457,-2572.02,0.00029863,7]
[334464113,1723127498466,-500.0,0.00029863,7]
[334464114,1723127498475,-1595.35,0.00029863,7]
[334464115,1723127498486,-500.0,0.00029863,7]
[334464116,1723127498496,-543.51,0.00029863,7]
[334464117,1723127498506,-3266.81,0.00029863,7]
[334464118,1723127498516,-693.0,0.00029863,7]
[334464119,1723127498525,-8118.87,0.00029863,7]
[334464120,1723127498539,-5221.71,0.00029863,7]
[334464121,1723127498548,-500.0,0.00029863,7]
[334464122,1723127498557,-1201.56,0.00029863,7]
[334464123,1723127498566,-1060.18,0.00029863,7]
[334464124,1723127498575,-1147.62,0.00029863,7]
[334464125,1723127498586,-1741.79,0.00029863,7]
[334464126,1723127498596,-1949.49,0.00029863,7]
[334464127,1723127498605,-1686.85,0.00029863,7]
[334464128,1723127498618,-500.0,0.00029863,2]
[334464129,1723127498628,-500.0,0.00029863,7]
[334464130,1723127498637,-202.87300255,0.00029863,7]
[334464131,1723127498647,-500.0,0.00029863,7]
[334464132,1723127498658,-2014.78,0.00029863,7]
[334464133,1723127498670,-3383.83,0.00029863,7]
[334464134,1723127498680,-1394.08,0.00029863,7]
[334464135,1723127498690,-711.37,0.00029863,7]
[334464136,1723127498700,-500.0,0.00029863,7]
[334464137,1723127498712,-500.0,0.00029863,7]
[334464138,1723127498724,-500.0,0.00029863,7]
[334464139,1723127498736,-3113.94,0.00029863,7]
[334464140,1723127498748,-1325.37,0.00029863,7]
[334464141,1723127498759,-709.86,0.00029863,7]
[334464142,1723127498769,-500.0,0.00029863,7]
[334464143,1723127498778,-5000.0,0.00029863,2]
[334464144,1723127498796,-5000.0,0.00029863,2]
[334464145,1723127498805,-5000.0,0.00029863,2]
[334464146,1723127498815,-4100.0,0.000299,2]
[334464147,1723127498824,-1612.17609504,0.00029936,2]
[334464148,1723127498834,-2900.0,0.00029941,2]
[334464149,1723127498843,-2000.0,0.0002995,2]
[334464150,1723127498854,-2900.0,0.00029955,2]
[334464151,1723127498863,-159.0,0.0002998,22]
[334464152,1723127498872,-4100.0,0.00029986,2]
[334464153,1723127498881,-153.0,0.0003,2]
[334464154,1723127498891,-285.04738087,0.0003,3]
[334464155,1723127498899,-254.96952233,0.0003,5]
[334464156,1723127498909,-154.79103211,0.0003,5]
[334464157,1723127498918,-275.51474195,0.0003,4]
[334464158,1723127498927,-201.553246,0.0003,120]
[334464159,1723127498936,-1000.0,0.0003,30]
[334464160,1723127498945,-18282.33258371,0.0003,7]
[334464161,1723127498955,-3019.51740661,0.0003,2]
[334464162,1723127498964,-151.0,0.0003,120]
[334464163,1723127498974,-1087.53966092,0.0003,2]
[334464164,1723127498983,-67301.40768138,0.0003,2]
[334464165,1723127498993,-186.0,0.0003,2]
[334464166,1723127499003,-500.0,0.00030059,7]
[334464167,1723127499012,-4600.0,0.00030096,7]
[334464168,1723127499021,-500.0,0.00030136,7]
[334464169,1723127499031,-500.0,0.00030136,7]
[334464170,1723127499042,-540.86,0.00030136,7]
[334464171,1723127499052,-500.0,0.00030136,7]
[334464172,1723127499062,-500.0,0.00030136,7]
[334464173,1723127499072,-500.0,0.00030136,7]
[334464174,1723127499083,-784.22,0.00030136,7]
[334464175,1723127499094,-500.0,0.00030136,7]